bitfinex/quotes_BTCUSD_20250515
["timestamp","ask_amount","ask_price","bid_price","bid_amount"]
[1747268150635,0.03092234,103720.0,103710.0,1.21217282]
[1747268150760,0.02128147,103720.0,103710.0,1.19577282]
[1747268151230,0.0116405,103720.0,103710.0,1.19577282]
[1747268151454,0.002,103720.0,103710.0,1.22747282]
[1747268152638,0.002,103720.0,103710.0,1.32478222]
[1747268153047,0.002,103720.0,103710.0,1.33932307]
[1747268156474,0.002,103720.0,103710.0,1.75042307]
[1747268158064,0.002,103720.0,103710.0,1.35606307]
[1747268158281,0.002,103720.0,103710.0,1.75026307]
[1747268159404,0.002,103720.0,103710.0,1.70378222]
[1747268159405,0.01164069,103720.0,103710.0,1.70378222]
[1747268159855,0.01164069,103720.0,103710.0,1.70370222]
[1747268160324,0.02128156,103720.0,103710.0,1.70386222]
[1747268160551,0.01164069,103720.0,103710.0,1.73516222]
[1747268160995,0.2298084,103720.0,103710.0,1.2028712]
[1747268161226,0.2654908,103720.0,103710.0,1.5968712]
[1747268161447,0.07266377,103720.0,103710.0,1.20287111]
[1747268161670,0.25584992,103720.0,103710.0,1.5969113]
[1747268161888,0.06302308,103720.0,103710.0,1.60655292]
[1747268162080,0.05338193,103720.0,103710.0,1.60643292]
[1747268162295,0.05338193,103720.0,103710.0,1.21251292]
[1747268162564,0.05338193,103720.0,103710.0,1.19529292]
[1747268162957,0.05338193,103720.0,103710.0,0.80141292]
[1747268163213,0.05338146,103720.0,103710.0,1.19517292]
[1747268163438,0.03698146,103720.0,103710.0,1.19517292]
[1747268163671,0.02734059,103720.0,103710.0,0.80141292]
[1747268163954,0.03533312,103720.0,103710.0,1.19537292]
[1747268164170,0.00641059,103720.0,103710.0,0.80141292]
[1747268164397,0.01605137,103720.0,103710.0,0.80141292]
[1747268164530,0.01605137,103720.0,103710.0,1.19537292]
[1747268164752,0.02569243,103720.0,103710.0,0.80141292]
[1747268164957,0.02569243,103720.0,103710.0,1.19533292]
[1747268165177,0.02534004,103730.0,103720.0,0.34]
[1747268165386,0.04113966,103730.0,103720.0,0.56174974]
[1747268165604,0.0507796,103730.0,103720.0,0.56174974]
[1747268165818,0.06041982,103730.0,103720.0,0.56174974]
[1747268166029,0.06041982,103730.0,103720.0,0.95618974]
[1747268166226,0.06041982,103730.0,103720.0,0.95610974]
[1747268166465,0.06041973,103730.0,103720.0,0.95610974]
[1747268166667,0.0537796,103730.0,103720.0,0.95630974]
[1747268166859,0.06341982,103730.0,103720.0,0.56174974]
[1747268167053,0.06341982,103730.0,103720.0,0.95626974]
[1747268168856,0.07451309,103730.0,103720.0,0.94662905]
[1747268169078,0.06487268,103730.0,103720.0,0.9659107]
[1747268169274,0.06341982,103730.0,103720.0,0.97627139]
[1747268170316,0.06341973,103730.0,103720.0,0.97627139]
[1747268170577,0.07305995,103730.0,103720.0,0.97627139]
[1747268170767,0.06341973,103730.0,103720.0,0.97627139]
[1747268171230,0.07305995,103730.0,103720.0,0.97627139]
[1747268171444,0.04413966,103730.0,103720.0,0.97627139]
[1747268171703,0.0380796,103730.0,103720.0,0.97627139]
[1747268171928,0.04771982,103730.0,103720.0,0.97627139]
[1747268172136,0.0380796,103730.0,103720.0,0.97627139]
[1747268172344,0.03807951,103730.0,103720.0,0.97627139]
[1747268172570,0.02843966,103730.0,103720.0,0.97627139]
[1747268172793,0.0380796,103730.0,103720.0,0.97627139]
[1747268173014,0.003,103730.0,103720.0,1.00747139]
[1747268176084,0.003,103730.0,103720.0,1.23747139]
[1747268178448,0.003,103730.0,103720.0,1.33478079]
[1747268178649,0.003,103730.0,103720.0,1.34932164]
[1747268180355,0.0004823,103740.0,103730.0,0.22172836]
[1747268180475,0.0004823,103740.0,103730.0,0.76757776]
[1747268181131,0.0004823,103740.0,103730.0,0.99757776]
[1747268181823,0.0034823,103740.0,103730.0,0.99757776]
[1747268182206,0.0034823,103740.0,103730.0,1.01218155]
[1747268184888,0.0034823,103740.0,103730.0,1.0267224]
[1747268185934,0.0004823,103740.0,103730.0,1.0267224]
[1747268186358,0.01112104,103740.0,103730.0,1.0267224]
[1747268186621,0.0014823,103740.0,103730.0,1.0267224]
[1747268186808,0.01112094,103740.0,103730.0,1.0267224]
[1747268187436,0.0014823,103740.0,103730.0,1.0267224]
[1747268188467,0.0014823,103740.0,103730.0,1.3667224]
[1747268190286,0.01112104,103740.0,103730.0,1.3667224]
[1747268190955,0.0014823,103740.0,103730.0,1.3667224]
[1747268191147,0.01112094,103740.0,103730.0,1.3667224]
[1747268191496,0.01112094,103740.0,103730.0,1.35218155]
[1747268191736,0.03039869,103740.0,103730.0,1.61765215]
[1747268191959,0.03039869,103740.0,103730.0,1.22257215]
[1747268192172,0.03039869,103740.0,103730.0,1.61761215]
[1747268192816,0.0303986,103740.0,103730.0,1.61761215]
[1747268193036,0.04003771,103740.0,103730.0,1.61761215]
[1747268194104,0.01112094,103740.0,103730.0,1.61761215]
[1747268194445,0.04003798,103740.0,103730.0,1.61761215]
[1747268194660,0.04559869,103740.0,103730.0,1.61761215]
[1747268195271,0.05523789,103740.0,103730.0,0.61868856]
[1747268195659,0.23444856,103730.0,103720.0,0.80156684]
[1747268195878,0.23444856,103730.0,103720.0,1.01884942]
[1747268196092,0.23444856,103730.0,103720.0,1.02849057]
[1747268196521,0.23444856,103730.0,103720.0,1.01884942]
[1747268196958,0.23444856,103730.0,103720.0,1.02849057]
[1747268197176,0.23444856,103730.0,103720.0,0.63285057]
[1747268197407,0.23444856,103730.0,103720.0,1.36845057]
[1747268198514,0.23444856,103730.0,103720.0,0.95735057]
[1747268202007,0.23444856,103730.0,103720.0,0.97667213]
[1747268202211,0.06092002,103730.0,103720.0,0.97667158]
[1747268202424,0.07056033,103730.0,103720.0,0.97667158]
[1747268203094,0.08020074,103730.0,103720.0,0.97667158]
[1747268203406,0.06370074,103730.0,103720.0,0.97667158]
[1747268207116,0.0651536,103730.0,103720.0,0.97667158]
[1747268208166,0.24832209,103730.0,103720.0,0.92846684]
[1747268208399,0.25272919,103730.0,103720.0,0.94774923]
[1747268208623,0.25272919,103730.0,103720.0,0.9573902]
[1747268209247,0.03478016,103730.0,103720.0,0.96611089]
[1747268209463,0.03623302,103730.0,103720.0,0.96611089]
[1747268209707,0.04587333,103730.0,103720.0,0.96611089]
[1747268209948,0.02073302,103730.0,103720.0,0.96611089]
[1747268210365,0.03037343,103730.0,103720.0,0.96611089]
[1747268210813,0.23828168,103730.0,103720.0,0.9564702]
[1747268210998,0.22172882,103730.0,103720.0,0.9564702]
[1747268211827,0.23752882,103730.0,103720.0,0.96611107]
[1747268212199,0.23752882,103730.0,103720.0,0.97575185]
[1747268214169,0.23752882,103730.0,103720.0,0.94682924]
[1747268214363,0.21824866,103730.0,103720.0,0.74010818]
[1747268214754,0.21824866,103730.0,103720.0,0.95519048]
[1747268215073,0.02544013,103730.0,103720.0,0.96483145]
[1747268215327,0.04472039,103730.0,103720.0,0.97447167]
[1747268215764,0.04617325,103730.0,103720.0,0.97447167]
[1747268216432,0.2389815,103730.0,103720.0,0.97447176]
[1747268216619,0.23752864,103730.0,103720.0,0.97447176]
[1747268217022,0.23752864,103730.0,103720.0,0.94554914]
[1747268217387,0.23752864,103730.0,103720.0,0.95518992]
[1747268219546,0.23752864,103730.0,103720.0,0.96483061]
[1747268219691,0.24716876,103730.0,103720.0,0.95518992]
[1747268219915,0.24716876,103730.0,103720.0,0.94554914]
[1747268220117,0.24716876,103730.0,103720.0,0.96483089]
[1747268220347,0.24716876,103730.0,103720.0,1.19483089]
[1747268220544,0.23752891,103730.0,103720.0,1.16590808]
[1747268220749,0.23752891,103730.0,103720.0,0.94554923]
[1747268221158,0.23752891,103730.0,103720.0,1.18519029]
[1747268222010,0.22788878,103730.0,103720.0,1.16590808]
[1747268222218,0.23464856,103730.0,103720.0,0.7332]
[1747268224338,0.23464856,103730.0,103720.0,0.34]
[1747268224548,0.24310905,103720.0,103710.0,0.95316]
[1747268224761,0.24310905,103720.0,103710.0,1.14932]
[1747268224999,0.24310905,103720.0,103710.0,0.80932]
[1747268225221,0.24310905,103720.0,103710.0,1.36144987]
[1747268225437,0.23346799,103720.0,103710.0,1.14924]
[1747268225639,0.24249834,103720.0,103710.0,1.3537276]
[1747268225844,0.24249834,103720.0,103710.0,1.36436968]
[1747268226287,0.26178055,103720.0,103710.0,1.38365338]
[1747268226507,0.00903035,103720.0,103710.0,1.000295]
[1747268226715,0.2435498,103740.0,103730.0,0.20244856]
[1747268226926,0.3601377,103740.0,103730.0,0.39928856]
[1747268227137,0.34085986,103740.0,103730.0,0.19684]
[1747268227354,0.33122075,103740.0,103730.0,0.20648041]
[1747268227560,0.34024624,103740.0,103730.0,0.19684]
[1747268228225,0.34124624,103740.0,103730.0,0.19684]
[1747268228839,0.33222075,103740.0,103730.0,0.19684]
[1747268229063,0.34124604,103740.0,103730.0,0.19684]
[1747268229488,0.34124588,103740.0,103730.0,0.19684]
[1747268229891,0.34124572,103740.0,103730.0,0.19684]
[1747268232340,0.32594572,103740.0,103730.0,0.19684]
[1747268232812,0.34244572,103740.0,103730.0,0.19684]
[1747268234245,0.33342075,103740.0,103730.0,0.19684]
[1747268237572,0.34244506,103740.0,103730.0,0.19684]
[1747268237781,0.20244847,103730.0,103720.0,0.19696]
[1747268237970,0.20246799,103720.0,103710.0,0.78714]
[1747268238165,0.20246799,103720.0,103710.0,0.78118227]
[1747268238375,0.20246799,103720.0,103710.0,1.18366444]
[1747268238586,0.20246799,103720.0,103710.0,1.37085195]
[1747268238794,0.20246799,103720.0,103710.0,1.42193583]
[1747268240593,0.20246799,103720.0,103710.0,1.42493583]
[1747268241161,0.20246799,103720.0,103710.0,1.39600987]
[1747268241414,0.20246799,103720.0,103710.0,1.42493583]
[1747268241634,0.20246799,103720.0,103710.0,1.42493536]
[1747268242134,0.20246799,103720.0,103710.0,1.4249349]
[1747268242341,0.02892326,103720.0,103710.0,1.42493444]
[1747268243313,0.01866462,103730.0,103720.0,0.02484078]
[1747268243524,0.03794413,103730.0,103720.0,0.26239052]
[1747268243745,0.04001299,103730.0,103720.0,0.26239052]
[1747268244213,0.21354183,103730.0,103720.0,0.23346808]
[1747268244431,0.20246799,103720.0,103710.0,0.56752949]
[1747268244655,0.21210858,103720.0,103710.0,0.59327129]
[1747268245538,0.01928146,103720.0,103710.0,0.60291291]
[1747268245753,0.02892261,103720.0,103710.0,0.99595291]
[1747268245970,0.03856385,103720.0,103710.0,0.99595291]
[1747268246410,0.04820491,103720.0,103710.0,0.995953]
[1747268246629,0.04820566,103720.0,103710.0,0.995953]
[1747268246857,0.22175057,103720.0,103710.0,0.9690276]
[1747268247082,0.22175057,103720.0,103710.0,0.97866968]
[1747268247765,0.20246818,103720.0,103710.0,0.7414076]
[1747268247976,0.19282684,103720.0,103710.0,0.58264227]
[1747268248359,0.19282684,103720.0,103710.0,0.97444227]
[1747268248732,0.19282684,103720.0,103710.0,0.74444227]
[1747268248926,0.19282684,103720.0,103710.0,0.9372877]
[1747268249138,0.19282684,103720.0,103710.0,0.95657195]
[1747268249355,0.20246799,103720.0,103710.0,1.00655564]
[1747268251420,0.02892252,103720.0,103710.0,1.00655499]
[1747268251806,0.03856367,103720.0,103710.0,1.00655499]
[1747268252004,0.01928146,103720.0,103710.0,1.00655499]
[1747268252216,0.02892252,103720.0,103710.0,1.00655499]
[1747268252433,0.01928146,103720.0,103710.0,1.00655499]
[1747268252653,0.02892261,103720.0,103710.0,1.00655499]
[1747268252879,0.03856395,103720.0,103710.0,1.23655508]
[1747268253540,0.23139079,103720.0,103710.0,1.23655508]
[1747268255544,0.03856385,103720.0,103710.0,1.23655453]
[1747268260274,0.01928146,103720.0,103710.0,1.23655453]
[1747268260913,0.03856385,103720.0,103710.0,1.23655453]
[1747268261560,0.02892261,103720.0,103710.0,1.23655453]
[1747268263107,0.01928137,103720.0,103710.0,1.23655453]
[1747268263291,0.01928146,103720.0,103710.0,1.23655453]
[1747268263539,0.02892261,103720.0,103710.0,1.23655453]
[1747268263757,0.01928146,103720.0,103710.0,1.23655453]
[1747268264200,0.02892243,103720.0,103710.0,1.23655453]
[1747268264620,0.03856367,103720.0,103710.0,1.23655453]
[1747268265044,0.03856367,103720.0,103710.0,1.22691291]
[1747268265254,0.24103185,103720.0,103710.0,1.22691291]
[1747268265736,0.21210942,103720.0,103710.0,0.53584543]
[1747268265951,0.24450942,103720.0,103710.0,0.9458495]
[1747268266387,0.21826818,103720.0,103710.0,0.343]
[1747268266603,0.21210924,103720.0,103710.0,0.94584949]
[1747268266831,0.0192824,103720.0,103710.0,0.96513291]
[1747268267073,0.02073526,103720.0,103710.0,0.96513291]
[1747268268244,0.2135621,103720.0,103710.0,0.95549129]
[1747268268468,0.21210924,103720.0,103710.0,0.95549129]
[1747268268683,0.21210924,103720.0,103710.0,0.96513338]
[1747268268911,0.21210924,103720.0,103710.0,1.006075]
[1747268268912,0.01928128,103720.0,103710.0,1.006075]
[1747268269128,0.02564022,103730.0,103720.0,0.22174974]
[1747268269350,0.03856088,103730.0,103720.0,0.22174974]
[1747268269570,0.22172919,103730.0,103720.0,0.22188974]
[1747268269797,0.20244866,103730.0,103720.0,0.21224859]
[1747268271290,0.19280825,103730.0,103720.0,0.21224859]
[1747268272082,0.19280825,103730.0,103720.0,0.22188974]
[1747268272890,0.2120887,103730.0,103720.0,0.2315308]
[1747268273116,0.01928035,103730.0,103720.0,0.28101255]
[1747268273557,0.02892011,103730.0,103720.0,0.281012]
[1747268274447,0.03856052,103730.0,103720.0,0.281012]
[1747268274673,0.02892011,103730.0,103720.0,0.281012]
[1747268275100,0.02892002,103730.0,103720.0,0.281012]
[1747268276925,0.02892002,103730.0,103720.0,0.265812]
[1747268277139,0.02892002,103730.0,103720.0,0.281912]
[1747268278082,0.03765411,103730.0,103720.0,0.281912]
[1747268278299,0.03765411,103730.0,103720.0,0.477432]
[1747268278746,0.04729442,103730.0,103720.0,0.477432]
[1747268279143,0.03856033,103730.0,103720.0,0.477432]
[1747268280349,0.03856033,103730.0,103720.0,0.707432]
[1747268281149,0.03856015,103730.0,103720.0,0.707432]
[1747268281652,0.03856015,103730.0,103720.0,0.477432]
[1747268281854,0.22143861,103740.0,103730.0,0.20244856]
[1747268282206,0.22143861,103740.0,103730.0,0.40700878]
[1747268282207,0.21179969,103740.0,103730.0,0.40700878]
[1747268282642,0.21179969,103740.0,103730.0,0.41664882]
[1747268282875,0.20291125,103740.0,103730.0,0.41664891]
[1747268283145,0.0197606,103740.0,103730.0,0.43592871]
[1747268283365,0.23182913,103740.0,103730.0,0.42628895]
[1747268283609,0.01012104,103740.0,103730.0,0.46902871]
[1747268283827,0.01012104,103740.0,103730.0,0.80902871]
[1747268283828,0.0004823,103740.0,103730.0,0.80902871]
[1747268284282,0.0024823,103740.0,103730.0,1.03902871]
[1747268284953,0.01212104,103740.0,103730.0,1.03902871]
[1747268285184,0.0024823,103740.0,103730.0,1.13633811]
[1747268285414,0.0024823,103740.0,103730.0,1.15087896]
[1747268286557,0.0024823,103740.0,103730.0,1.16562521]
[1747268288105,1e-08,103740.0,103730.0,1.16562521]
[1747268288501,0.00200001,103750.0,103740.0,0.26774784]
[1747268288705,0.00209304,103750.0,103740.0,0.97681724]
[1747268289522,0.00209304,103750.0,103740.0,1.20681724]
[1747268290171,0.01927385,103760.0,103750.0,0.56168562]
[1747268290437,0.00963688,103760.0,103750.0,0.69049502]
[1747268290867,0.00963688,103760.0,103750.0,1.08449502]
[1747268291118,0.00963688,103760.0,103750.0,1.31449502]
[1747268291533,0.02127404,103760.0,103750.0,1.31449502]
[1747268291758,0.01163688,103760.0,103750.0,1.31449502]
[1747268292670,0.002,103760.0,103750.0,1.31449502]
[1747268293332,0.01163678,103760.0,103750.0,1.31449502]
[1747268293501,0.002,103760.0,103750.0,1.31449502]
[1747268293716,0.01163678,103760.0,103750.0,1.31449502]
[1747268293912,0.002,103760.0,103750.0,1.31449502]
[1747268295749,0.02172688,103770.0,103760.0,0.59426425]
[1747268296185,0.03136292,103770.0,103760.0,0.59426425]
[1747268296404,0.02172688,103770.0,103760.0,0.59426425]
[1747268296633,0.03136292,103770.0,103760.0,0.82426425]
[1747268297267,0.01209102,103770.0,103760.0,0.82426425]
[1747268297505,0.01209102,103770.0,103760.0,0.92157365]
[1747268297926,0.02172688,103770.0,103760.0,0.92157365]
[1747268298171,0.01409102,103770.0,103760.0,0.92157365]
[1747268298393,0.02372688,103770.0,103760.0,0.92157365]
[1747268299044,0.03336283,103770.0,103760.0,0.92157365]
[1747268299862,0.04299887,103770.0,103760.0,0.92157365]
[1747268300090,0.02372688,103770.0,103760.0,1.12001365]
[1747268300316,0.02372688,103770.0,103760.0,1.31549365]
[1747268300537,0.01409102,103770.0,103760.0,1.31549365]
[1747268300756,0.02372697,103770.0,103760.0,1.31549365]
[1747268301024,0.01409102,103770.0,103760.0,1.31549365]
[1747268301244,0.02372688,103770.0,103760.0,1.31549365]
[1747268301688,0.01409102,103770.0,103760.0,1.31549365]
[1747268302139,0.01409102,103770.0,103760.0,0.92157365]
[1747268302327,0.01409102,103770.0,103760.0,1.31653365]
[1747268307895,0.01409102,103770.0,103760.0,1.32517365]
[1747268312095,0.01409102,103770.0,103760.0,1.74125365]
[1747268313556,0.05879998,103770.0,103760.0,1.18847003]
[1747268313788,0.05879998,103770.0,103760.0,1.61086425]
[1747268313789,0.0587997,103770.0,103760.0,1.61086425]
[1747268314000,0.05879961,103770.0,103760.0,1.61086425]
[1747268315108,0.06843612,103770.0,103760.0,1.61086425]
[1747268315543,0.07807272,103770.0,103760.0,1.61086425]
[1747268315737,0.09492623,103770.0,103760.0,1.61086425]
[1747268317937,0.06025294,103770.0,103760.0,1.61086425]
[1747268318162,0.0333632,103770.0,103760.0,1.61086425]
[1747268318608,0.02372697,103770.0,103760.0,1.64346425]
[1747268318827,0.01409102,103770.0,103760.0,1.74077365]
[1747268319954,0.02372697,103770.0,103760.0,1.74077365]
[1747268320173,0.01409102,103770.0,103760.0,1.74077365]
[1747268321540,0.01409102,103770.0,103760.0,1.72437365]
[1747268321745,0.02372688,103770.0,103760.0,1.72437365]
[1747268322376,0.01409102,103770.0,103760.0,1.74027365]
[1747268323220,0.02372688,103770.0,103760.0,1.74027365]
[1747268323677,0.01409102,103770.0,103760.0,1.74027365]
[1747268323892,0.02372688,103770.0,103760.0,1.74027365]
[1747268324163,0.01409102,103770.0,103760.0,1.74027365]
[1747268331473,0.01209102,103770.0,103760.0,1.74027365]
[1747268331729,0.01309102,103770.0,103760.0,1.74027365]
[1747268332940,0.01209102,103770.0,103760.0,1.74027365]
[1747268333698,0.01409102,103770.0,103760.0,1.74027365]
[1747268337224,0.01409102,103770.0,103760.0,1.7548145]
[1747268338308,0.01409102,103770.0,103760.0,1.74027365]
[1747268338909,0.01209102,103770.0,103760.0,1.74027365]
[1747268339381,0.01309102,103770.0,103760.0,1.76799365]
[1747268339829,0.01409102,103770.0,103760.0,1.76799365]
[1747268340276,0.01409102,103770.0,103760.0,1.85988524]
[1747268340530,0.01409102,103770.0,103760.0,1.7825345]
[1747268342538,0.01409102,103770.0,103760.0,2.1936345]
[1747268348863,0.01409102,103770.0,103760.0,2.1957545]
[1747268349300,0.01409102,103770.0,103760.0,1.7844545]
[1747268349527,0.01409102,103770.0,103760.0,1.33715365]
[1747268349789,0.01409102,103770.0,103760.0,1.77015365]
[1747268350233,0.01409102,103770.0,103760.0,1.7846945]
[1747268354646,0.01409102,103770.0,103760.0,2.1957945]
[1747268357511,0.01409102,103770.0,103760.0,1.71615365]
[1747268357736,0.04459102,103770.0,103760.0,1.81171365]
[1747268357960,0.01409102,103770.0,103760.0,1.81171365]
[1747268358423,0.01409102,103770.0,103760.0,2.18291365]
[1747268363418,0.01409102,103770.0,103760.0,1.96263365]
[1747268363623,0.01409102,103770.0,103760.0,2.15591365]
[1747268363893,0.01409102,103770.0,103760.0,1.71615365]
[1747268364157,0.05512697,103770.0,103760.0,2.16663365]
[1747268364361,0.05512697,103770.0,103760.0,1.71615365]
[1747268364566,0.05512697,103770.0,103760.0,2.16655365]
[1747268364990,0.05512688,103770.0,103760.0,2.16655365]
[1747268365617,0.04549102,103770.0,103760.0,2.16655365]
[1747268366507,0.04549102,103770.0,103760.0,1.75545365]
[1747268368038,0.04549102,103770.0,103760.0,1.75461365]
[1747268368248,0.05512688,103770.0,103760.0,1.30505365]
[1747268368472,0.05512688,103770.0,103760.0,1.75453365]
[1747268368705,0.27676977,103770.0,103760.0,1.42418728]
[1747268368913,0.08403584,103770.0,103760.0,1.65730425]
[1747268369164,0.08403584,103770.0,103760.0,1.42730425]
[1747268369383,0.08403584,103770.0,103760.0,1.42742443]
[1747268369384,0.07439998,103770.0,103760.0,1.42742443]
[1747268369597,0.06476338,103770.0,103760.0,1.4370614]
[1747268369849,0.05512706,103770.0,103760.0,1.4370614]
[1747268370076,0.06476329,103770.0,103760.0,1.4370614]
[1747268370288,0.06476319,103770.0,103760.0,1.4370614]
[1747268371963,0.07439951,103770.0,103760.0,1.4370614]
[1747268372281,0.06476319,103770.0,103760.0,1.4370614]
[1747268372714,0.05512706,103770.0,103760.0,1.4370614]
[1747268373556,0.04549102,103770.0,103760.0,1.4370614]
[1747268373781,0.02919102,103770.0,103760.0,1.4370614]
[1747268373996,0.01409102,103770.0,103760.0,1.4370614]
[1747268374387,0.01409102,103770.0,103760.0,1.6670614]
[1747268375608,0.01409102,103770.0,103760.0,1.7800708]
[1747268376674,0.01409102,103770.0,103760.0,1.7643708]
[1747268381253,0.03069102,103770.0,103760.0,1.7643708]
[1747268381484,0.0663632,103770.0,103760.0,1.6653014]
[1747268381705,0.07599961,103770.0,103760.0,1.6653014]
[1747268381922,0.07599971,103770.0,103760.0,1.6653014]
[1747268382139,0.0663632,103770.0,103760.0,1.6653014]
[1747268382362,0.07599961,103770.0,103760.0,1.6653014]
[1747268383442,0.07599933,103770.0,103760.0,1.6653014]
[1747268384378,0.07599924,103770.0,103760.0,1.6653014]
[1747268386399,0.06636301,103770.0,103760.0,1.6653014]
[1747268386602,0.07599924,103770.0,103760.0,1.6653014]
[1747268387201,0.07599924,103770.0,103760.0,1.2173814]
[1747268387371,0.07599924,103770.0,103760.0,1.6638614]
[1747268387779,0.06636301,103770.0,103760.0,1.6638614]
[1747268388032,0.04996301,103770.0,103760.0,1.6638614]
[1747268388803,0.05959924,103770.0,103760.0,1.6638614]
[1747268389247,0.04996301,103770.0,103760.0,1.6638614]
[1747268389403,0.05959914,103770.0,103760.0,1.6638614]
[1747268389804,0.04032688,103770.0,103760.0,1.6638614]
[1747268390005,0.02372688,103770.0,103760.0,1.6638614]
[1747268390233,0.03336292,103770.0,103760.0,1.2477814]
[1747268390441,0.02372688,103770.0,103760.0,1.2477814]
[1747268390635,0.03336292,103770.0,103760.0,1.2477814]
[1747268392314,0.02372688,103770.0,103760.0,1.2477814]
[1747268392516,0.03336292,103770.0,103760.0,1.2477814]
[1747268393378,0.02372688,103770.0,103760.0,1.2477814]
[1747268393980,0.03336292,103770.0,103760.0,1.2477814]
[1747268394782,0.01409102,103770.0,103760.0,1.2477814]
[1747268395003,0.02372697,103770.0,103760.0,1.2477814]
[1747268395468,0.02372706,103770.0,103760.0,1.2477814]
[1747268395672,0.02372697,103770.0,103760.0,1.2477814]
[1747268396575,0.0333631,103770.0,103760.0,1.2477814]
[1747268396996,0.02372697,103770.0,103760.0,1.2477814]
[1747268397209,0.03336301,103770.0,103760.0,1.2477814]
[1747268398248,0.02372697,103770.0,103760.0,1.2477814]
[1747268399363,0.0333631,103770.0,103760.0,1.2477814]
[1747268400375,0.02372697,103770.0,103760.0,1.2477814]
[1747268401251,0.01409102,103770.0,103760.0,1.2477814]
[1747268401478,0.02372697,103770.0,103760.0,1.2477814]
[1747268401909,0.01409102,103770.0,103760.0,1.2477814]
[1747268402332,0.01409102,103770.0,103760.0,1.2633814]
[1747268402965,0.01409102,103770.0,103760.0,1.2788814]
[1747268405498,0.01409102,103770.0,103760.0,1.2633814]
[1747268406796,0.01409102,103770.0,103760.0,1.2477814]
[1747268407729,0.01409102,103770.0,103760.0,1.2804814]
[1747268409832,0.00145102,103770.0,103760.0,1.3777908]
[1747268412087,0.015593,103780.0,103770.0,0.22164289]
[1747268412333,0.015593,103780.0,103770.0,0.25384289]
[1747268412799,0.015593,103780.0,103770.0,0.48384289]
[1747268413287,0.015593,103780.0,103770.0,0.58115229]
[1747268413516,0.016593,103780.0,103770.0,0.58115229]
[1747268415720,0.00585085,103780.0,103770.0,0.58115229]
[1747268416617,0.002,103790.0,103780.0,0.56162152]
[1747268416860,0.00213939,103790.0,103780.0,0.56162152]
[1747268417319,0.00213939,103790.0,103780.0,0.79162152]
[1747268418502,0.00213939,103790.0,103780.0,1.01850152]
[1747268419295,0.00313939,103790.0,103780.0,1.01850152]
[1747268420138,0.01277348,103790.0,103780.0,1.01850152]
[1747268420344,0.00313939,103790.0,103780.0,1.01850152]
[1747268420784,0.00313939,103790.0,103780.0,1.05000152]
[1747268422445,0.00213939,103790.0,103780.0,1.05000152]
[1747268422893,0.00313939,103790.0,103780.0,1.05000152]
[1747268423116,0.01277339,103790.0,103780.0,1.05000152]
[1747268423400,0.01277339,103790.0,103780.0,1.03450152]
[1747268423653,0.00313939,103790.0,103780.0,1.03450152]
[1747268423886,0.00313939,103790.0,103780.0,1.05030152]
[1747268424787,0.00313939,103790.0,103780.0,0.82342152]
[1747268425013,0.00313939,103790.0,103780.0,1.27590152]
[1747268425245,0.01277339,103790.0,103780.0,1.27590152]
[1747268425704,0.00313939,103790.0,103780.0,1.27590152]
[1747268425957,0.01277339,103790.0,103780.0,1.27590152]
[1747268426174,0.00313939,103790.0,103780.0,1.27590152]
[1747268426409,0.01277339,103790.0,103780.0,1.29160152]
[1747268426860,0.00313939,103790.0,103780.0,1.29160152]
[1747268427495,0.01277339,103790.0,103780.0,1.29160152]
[1747268427702,0.00313939,103790.0,103780.0,1.29160152]
[1747268427871,0.02240767,103790.0,103780.0,1.27590152]
[1747268428099,0.01277339,103790.0,103780.0,1.27590152]
[1747268428305,0.02240748,103790.0,103780.0,1.27590152]
[1747268428634,0.03204166,103790.0,103780.0,1.27590152]
[1747268428874,0.01277348,103790.0,103780.0,1.27590152]
[1747268429555,0.00313939,103790.0,103780.0,1.27590152]
[1747268429920,0.00313939,103790.0,103780.0,1.25990152]
[1747268430369,0.00313939,103790.0,103780.0,1.29060152]
[1747268432160,0.01277357,103790.0,103780.0,1.27540152]
[1747268432660,0.01277348,103790.0,103780.0,1.27540152]
[1747268432874,0.00313939,103790.0,103780.0,1.25990152]
[1747268433090,0.01277348,103790.0,103780.0,1.25990152]
[1747268433304,0.02240766,103790.0,103780.0,1.25990152]
[1747268433536,0.04167668,103790.0,103780.0,0.79162152]
[1747268433759,0.02240766,103790.0,103780.0,1.26130152]
[1747268433926,0.03204203,103790.0,103780.0,1.26118152]
[1747268434156,0.02240766,103790.0,103780.0,1.26118152]
[1747268434704,0.00313939,103790.0,103780.0,1.26118152]
[1747268435112,0.01277348,103790.0,103780.0,1.26118152]
[1747268436198,0.02240776,103790.0,103780.0,1.26118152]
[1747268436374,0.01277348,103790.0,103780.0,1.26118152]
[1747268436726,0.02240766,103790.0,103780.0,1.26118152]
[1747268436937,0.01277348,103790.0,103780.0,1.26118152]
[1747268438049,0.02240776,103790.0,103780.0,1.26118152]
[1747268438685,0.01277348,103790.0,103780.0,1.26118152]
[1747268439120,0.02240766,103790.0,103780.0,1.26118152]
[1747268439478,0.04167677,103790.0,103780.0,0.79162152]
[1747268439699,0.05506136,103790.0,103780.0,1.01343093]
[1747268439902,0.05506136,103790.0,103780.0,1.03270143]
[1747268440123,0.24775843,103790.0,103780.0,0.76971535]
[1747268440345,0.24775843,103790.0,103760.0,0.4111]
[1747268440346,0.29314558,103790.0,103760.0,0.4111]
[1747268440558,0.015,103770.0,103760.0,0.86972425]
[1747268440764,0.03427199,103770.0,103760.0,0.86972425]
[1747268440965,0.02463586,103770.0,103760.0,0.86972425]
[1747268441224,0.04390803,103770.0,103760.0,1.20972425]
[1747268441450,0.02890803,103770.0,103760.0,1.20972425]
[1747268441630,0.03854426,103770.0,103760.0,1.21072425]
[1747268441888,0.02890803,103770.0,103760.0,1.21272425]
[1747268442338,0.04440803,103770.0,103760.0,1.21272425]
[1747268442920,0.04440803,103770.0,103760.0,1.44272425]
[1747268443125,0.04440803,103770.0,103760.0,1.20576425]
[1747268443333,0.04440803,103770.0,103760.0,1.67612425]
[1747268443536,0.06984435,103770.0,103760.0,1.44612425]
[1747268443781,0.06020803,103770.0,103760.0,1.44612425]
[1747268444014,0.06984444,103770.0,103760.0,1.44604425]
[1747268444184,0.0505719,103770.0,103760.0,1.44604425]
[1747268444416,0.0505719,103770.0,103760.0,1.03494425]
[1747268444619,0.06020813,103770.0,103760.0,1.03494425]
[1747268444833,0.06984454,103770.0,103760.0,1.03494425]
[1747268445478,0.04440803,103770.0,103760.0,1.03442425]
[1747268445878,0.04440813,103770.0,103760.0,1.26442425]
[1747268446128,0.07024444,103770.0,103760.0,1.03442425]
[1747268446323,0.07024444,103770.0,103760.0,0.003]
[1747268446324,0.36174054,103770.0,103760.0,0.003]
[1747268446500,0.34101616,103770.0,103760.0,0.003]
[1747268447357,0.34101616,103770.0,103760.0,0.002]
[1747268447774,0.23338993,103760.0,103750.0,1.20328687]
[1747268449424,0.23338993,103760.0,103750.0,1.20428687]
[1747268449636,0.23338993,103760.0,103750.0,1.21392514]
[1747268449841,0.23338993,103760.0,103750.0,1.20428687]
[1747268450258,0.23338993,103760.0,103750.0,1.21236514]